Cogmind - Beta 11 X9 @@@ ROGUE MODE // 2021.12.25 @ 16:20:07 // Winter2021/Sauler Player: Yosh Result: Destroyed by P-80 Master with Gamma Rifle Performance ------------- Evolutions (7) 3500 Regions Visited (12) 2400 Robots Destroyed (75) 375 Value Destroyed (2017) 2017 Prototype IDs (40) 800 Alien Tech Used (0) 0 Bonus (343) 343 TOTAL SCORE: 9435 Bonus ------- Follower Combat Kills 144 Aligned with FarCom 300 Friendly Fire -101 Cogmind --------- Core Integrity 0/1300 Matter 241/300 Energy 91/100 System Corruption 10% Temperature Cool (0) Movement Core (50) Location -3/Research Parts ------- > --- POWER (1) -------- (None) > --- PROPULSION (5) --- (None) > --- UTILITY (13) ----- Advanced Hacking Suite > --- WEAPON (2) ------- (None) > --- INVENTORY (5) ---- Light Particle Reactor Superbattery (1168) Improved Remote Datajack Peak State ------------ > --- POWER ------------ Light Particle Reactor > --- PROPULSION ------- VTOL Module VTOL Module Q-thruster Impulse Thruster Array > --- UTILITY ---------- Experimental Heat Sink Superbattery Enhanced Optical Array Improved Signal Interpreter Improved Melee Analysis Suite ECM Suite Improved Maneuvering Thrusters Improved Utility Shielding Hacking Suite Hacking Suite Advanced Hacking Suite System Shield System Shield > --- WEAPON ----------- Lance > --- INVENTORY -------- Micro Fission Core VTOL Module Advanced Power Amplifier Advanced Datajack Improved Remote Datajack [Rating: 100] Favorites ----------- Power Reinforced Ion Engine Engine Reinforced Ion Engine Power Core Micro Fission Core Reactor Light Particle Reactor Propulsion VTOL Module Treads Light Treads Wheel Wheel Hover Unit Gravmag System Flight Unit VTOL Module Utility Large Storage Unit Device Improved Sensor Array Storage Large Storage Unit Processor Improved Targeting Computer Hackware Hacking Suite Protection Layered Light Armor Plating Weapon EM Pulse Gun Energy Gun EM Pulse Gun Ballistic Gun Assault Rifle Ballistic Cannon Linear Accelerator Launcher Mini Grenade Launcher Slashing Weapon Greatsword Piercing Weapon Spear Special Melee Weapon Improved Datajack Build | -11 -10 -10 -9 -9 -9 -8 -8 -7 -6 -5 -4 -3 ------- Run | Scr Mat Min Mat Min Exi Min Mat Fac Fac Fac Fac Res Slots Evolved 14 | . . . 2 . . . 2 2 2 2 2 2 Power . | . . . . . . . . . . . . . Propulsion 3 | . . . . . . . 2 1 . . . . Utility 11 | . . . 2 . . . . 1 2 2 2 2 Weapon . | . . . . . . . . . . . . . Parts Attached 153 | 5 7 . 24 2 2 4 15 17 22 18 19 18 Power 15 | 1 1 . 3 . . . 1 2 3 1 1 2 Engine 8 | 1 1 . 3 . . . . 1 2 . . . Core 6 | . . . . . . . 1 1 1 1 1 1 Reactor 1 | . . . . . . . . . . . . 1 Propulsion 49 | 1 1 . 5 . . 1 7 7 8 7 5 7 Treads 6 | . 1 . 5 . . . . . . . . . Leg . | . . . . . . . . . . . . . Wheel 2 | 1 . . . . . 1 . . . . . . Hover 13 | . . . . . . . 1 6 3 3 . . Flight 28 | . . . . . . . 6 1 5 4 5 7 Utility 54 | 1 2 . 6 1 . 1 4 7 9 6 10 7 Device 26 | . . . 3 . . . 3 3 3 4 5 5 Storage 6 | 1 1 . . . . . . 1 1 1 1 . Processor 7 | . 1 . 1 . . 1 . . 2 . 1 1 Hackware 5 | . . . . . . . . 1 1 1 2 . Protection 10 | . . . 2 1 . . 1 2 2 . 1 1 Artifact . | . . . . . . . . . . . . . Weapon 35 | 2 3 . 10 1 2 2 3 1 2 4 3 2 Energy Gun 13 | 1 3 . 5 1 2 1 . . . . . . Energy Cannon . | . . . . . . . . . . . . . Ballistic Gun 4 | 1 . . 3 . . . . . . . . . Ballistic Cannon 1 | . . . . . . . . . . . . 1 Launcher 4 | . . . 2 . . 1 1 . . . . . Special Weapon . | . . . . . . . . . . . . . Impact Weapon . | . . . . . . . . . . . . . Slashing Weapon 2 | . . . . . . . . . . 2 . . Piercing Weapon 6 | . . . . . . . 2 . 1 1 2 . Special Melee Weapon 5 | . . . . . . . . 1 1 1 1 1 Unidentified Prototypes 8 | . . . 2 . . . . 2 1 1 2 . Corrupted Parts 1 | . . . . . . 1 . . . . . . System Corruption 4 | . . . . . . 4 . . . . . . Parts Lost 64 | . . . 6 . . 1 14 2 2 10 8 21 Power 5 | . . . . . . . 1 1 . 2 . 1 Propulsion 29 | . . . 2 . . 1 8 . 2 4 4 8 Utility 19 | . . . 1 . . . 2 . . 3 3 10 Weapon 11 | . . . 3 . . . 3 1 . 1 1 2 Highest Loss Streak 12 | . . . 2 . . 1 12 1 2 4 5 11 Average Slot Usage (%) 89 | . 98 100 99 100 78 99 80 88 90 77 78 70 Engine 7 | . 14 14 10 11 11 11 6 5 4 2 . . Treads 10 | . 13 14 20 22 22 19 6 . . . . . Wheel 2 | . 14 14 1 . . 1 6 . . . . . Hover 5 | . . . . . . . 4 30 23 7 . . Flight 5 | . . . . . . . 8 5 6 16 19 13 Device 8 | . . . 11 11 11 . 2 6 11 5 14 11 Storage 8 | . 14 14 11 11 11 11 7 6 4 1 4 3 Processor 11 | . 13 14 11 11 11 21 15 3 5 11 11 11 Hackware 5 | . . . . . . . . 3 12 12 16 20 Protection 7 | . . . 10 11 11 11 8 13 9 7 4 . Energy Gun 10 | . 27 28 19 21 1 21 10 . . . . . Piercing Weapon 1 | . . . . . . . 1 7 6 3 1 3 Naked Turns . | . . . . . . . . . . . . . Heaviest Build 44 | 13 29 29 44 41 41 41 40 23 27 20 18 27 Greatest Support 45 | 10 20 10 43 43 43 43 23 45 45 27 20 32 Greatest Overweight (x) 4 | 1 2 2 4 . . 2 3 . 1 1 3 1 Average Overweight (x) . | . 1 2 . . . . 1 . . . . . Largest Inventory Capacity 15 | 8 15 15 15 15 15 15 15 8 8 5 5 5 Average Capacity 11 | 6 13 15 15 15 15 15 12 7 6 5 5 5 Most Carried 15 | 7 15 15 15 15 15 15 15 8 8 5 5 5 Average Carried 10 | 4 13 14 14 14 14 14 12 7 6 4 4 3 Final Capacity 15 | 8 15 15 15 15 15 15 5 8 5 5 5 5 Final Carried 15 | 7 15 15 15 15 15 15 5 8 5 5 5 3 Class Distribution -------------------- 66% | Mutant 12% | Hacker-Mutant 9% | Hacker-Sprinter 3% | Hacker-Ninja Dominant Class ---------------- Mutant | -10/Materials Mutant | -10/Mines Mutant | -9/Materials Mutant | -9/Mines Mutant | -9/Exiles Mutant | -8/Mines Mutant | -8/Materials Mutant | -7/Factory Hacker-Mutant | -6/Factory Scavenger-Mutant | -5/Factory Hacker-Ninja | -4/Factory Hacker-Mutant | -3/Research Resources | -11 -10 -10 -9 -9 -9 -8 -8 -7 -6 -5 -4 -3 ----------- Run | Scr Mat Min Mat Min Exi Min Mat Fac Fac Fac Fac Res Matter Collected 1613 | 250 70 . 283 20 . 105 16 250 105 310 80 124 Remotely . | . . . . . . . . . . . . . Salvage Created 2525 | . 552 161 898 65 . 172 253 . 105 199 120 . Parts 173 | . 36 7 62 3 . 10 17 . 10 21 7 . Haulers Intercepted 5 | . 2 . 3 . . . . . . . . . Recyclers Shooed 2 | . 1 . . . . . 1 . . . . . Parts Field Recycled . | . . . . . . . . . . . . . Retrieved Matter . | . . . . . . . . . . . . . Parts Self-Destructed . | . . . . . . . . . . . . . Prevented . | . . . . . . . . . . . . . Kills | -11 -10 -10 -9 -9 -9 -8 -8 -7 -6 -5 -4 -3 ------- Run | Scr Mat Min Mat Min Exi Min Mat Fac Fac Fac Fac Res Combat Hostiles Destroyed 56 | . 13 3 21 1 . 3 7 . 1 5 2 . Melee 10 | . . . . . . . 2 . 1 5 2 . Guns 28 | . 10 1 15 1 . . 1 . . . . . AOE 16 | . 3 2 6 . . 2 3 . . . . . Classes Destroyed 14 | . 4 1 4 . . 3 . . 1 1 . . Builder 3 | . . . 1 1 . . 1 . . . . . Tunneler 2 | . . . . . . 1 . . . 1 . . Hauler 5 | . 2 . 3 . . . . . . . . . Recycler 1 | . . . . . . 1 . . . . . . Mechanic 1 | . . 1 . . . . . . . . . . Operator 6 | . 1 . 2 . . . 1 . 2 . . . Watcher 1 | . . . . . . . . . 1 . . . Swarmer 24 | . 6 . 10 . . 2 2 . 1 3 . . Grunt 21 | . 7 3 5 1 . . 5 . . . . . Brawler 1 | . . . 1 . . . . . . . . . Duelist 1 | . . . 1 . . . . . . . . . Sentry 4 | . . . 4 . . . . . . . . . Hunter 1 | . . . . . . 1 . . . . . . Programmer 4 | . . . . . . . . . . 2 2 . Best Kill Streak 6 | . 3 4 6 2 . 2 5 . 1 5 2 . Combat Bots Only 5 | . 3 3 5 1 . 2 3 . 1 5 2 . Max Kills in Single Turn 4 | . 2 4 3 1 . 1 3 . 1 1 1 . Gunslinging . | . . . . . . . . . . . . . Exploded 3 | . 2 2 3 . . 1 2 . . . . . Melee 1 | . . . . . . . 1 . 1 1 1 . Uniques/NPCs Destroyed . | . . . . . . . . . . . . . Combat | -11 -10 -10 -9 -9 -9 -8 -8 -7 -6 -5 -4 -3 -------- Run | Scr Mat Min Mat Min Exi Min Mat Fac Fac Fac Fac Res Damage Taken 7266 | . 347 39 850 56 . 176 1395 92 297 915 888 2211 Core 2553 | . 104 . 99 . . 24 435 16 81 241 252 1301 Absorbed by Shields 80 | . . . . . . . . . . . . 80 Core Remaining (%) 73 | 100 . 58 . . . 69 20 97 90 75 78 . Volleys Fired 133 | . 30 1 63 4 . 15 18 . . . . 2 Largest 2 | . 2 2 2 2 . 2 2 . . . . 1 Hottest 95 | . 80 80 80 95 . 95 95 . . . . 66 Shots Fired 248 | . 60 2 125 8 . 24 27 . . . . 2 Gun 233 | . 60 2 123 8 . 19 21 . . . . . Cannon 2 | . . . . . . . . . . . . 2 Launcher 13 | . . . 2 . . 5 6 . . . . . Special . | . . . . . . . . . . . . . Kinetic 18 | . . . 16 . . . . . . . . 2 Thermal . | . . . . . . . . . . . . . Explosive 13 | . . . 2 . . 5 6 . . . . . Electromagnetic 217 | . 60 2 107 8 . 19 21 . . . . . Robot Hit Streak 12 | . 12 9 10 3 . 5 10 . . . . 1 Robot Miss Streak 3 | . 3 . 3 2 . 2 2 . . . . 1 Penetration Max . | . . . . . . . . . . . . . Secondary Targets 3 | . 1 1 1 . . . . . . . . . Max Gunslinging Chain 1 | . 1 1 1 . . . . . . . . . Shots Hit Robots 198 | . 42 2 81 4 . 15 21 . 7 12 10 4 Core Hits 113 | . 23 4 40 3 . 7 19 . 4 7 3 3 Critical Kills . | . . . . . . . . . . . . . Critical Parts Destroyed . | . . . . . . . . . . . . . Critical Strikes 4 | . . . 3 . . . . . . 1 . . Corrupt 3 | . . . 3 . . . . . . . . . Puncture 1 | . . . . . . . . . . 1 . . Melee Attacks 188 | . . . . . . . 10 23 30 55 40 30 Impact . | . . . . . . . . . . . . . Slashing 25 | . . . . . . . . . . 11 14 . Piercing 157 | . . . . . . . 10 23 30 42 24 28 Sneak Attacks 5 | . . . . . . . . . 2 3 . . Combat Hostiles 2 | . . . . . . . . . . 2 . . Follow-up Attacks . | . . . . . . . . . . . . . Damage Inflicted 5679 | . 684 179 1427 132 . 586 1102 . 446 487 456 180 Guns 2067 | . 525 28 985 59 . 205 265 . . . . . Cannons 77 | . . . . . . . . . . . . 77 Explosions 1969 | . 159 151 442 73 . 381 763 . . . . . Melee 1555 | . . . . . . . 74 . 446 487 456 92 Ramming 11 | . . . . . . . . . . . . 11 Kinetic 203 | . . . 126 . . . . . . . . 77 Thermal 708 | . 159 151 180 73 . 61 84 . . . . . Explosive 1261 | . . . 262 . . 320 679 . . . . . Electromagnetic 1941 | . 525 28 859 59 . 205 265 . . . . . Impact . | . . . . . . . . . . . . . Slashing 339 | . . . . . . . . . . 239 100 . Piercing 1216 | . . . . . . . 74 . 446 248 356 92 Highest Corruption 9 | . . . 1 1 1 5 1 . . 2 7 9 Average Corruption 1 | . . . 1 1 1 1 1 . . 1 4 2 Corruption Purged . | . . . . . . . . . . . . . Effects 38 | . . . 4 . 6 7 2 . . 3 15 1 Message Errors 14 | . . . 1 . 3 3 . . . 1 6 . Matter Fused 2 | . . . . . . 1 . . . . 1 . Heat Flow Errors 1 | . . . . . . . . . . . 1 . Energy Discharges 12 | . . . 3 . 1 1 2 . . 1 3 1 Data Loss (minor) 5 | . . . . . 2 . . . . 1 2 . Data Loss (major) 2 | . . . . . . . . . . . 2 . Misfires 1 | . . . . . . 1 . . . . . . Weapon Failures 1 | . . . . . . 1 . . . . . . Overload Shots . | . . . . . . . . . . . . . Overflow Damage 185 | . . . 11 . . 25 36 . 16 7 30 60 Projectiles 33 | . . . . . . . . . . . . 33 Explosions 72 | . . . 11 . . 25 36 . . . . . Melee 80 | . . . . . . . . . 16 7 30 27 Knockbacks 2 | . . . . . . . . . . . . 2 Impact . | . . . . . . . . . . . . . Kinetic 2 | . . . . . . . . . . . . 2 Secondary . | . . . . . . . . . . . . . Self-Inflicted Damage 118 | . 27 . . . . . 86 . . . . 5 Shots 3 | . 1 . . . . . 2 . . . . . Rammed 4 | . . . 1 . . . . . . . . 3 Targets Rammed 4 | . . . 1 . . . . . . . . 3 Kicked . | . . . . . . . . . . . . . Crushed . | . . . . . . . . . . . . . Highest Temperature 340 | . 177 18 340 234 . 255 331 . 7 5 217 . Average Temperature 76 | . 51 12 55 120 . 105 130 . 7 5 119 . Received Heat Transfer 1164 | . 117 21 249 30 . . 522 6 90 99 12 18 Effects 3 | . . . 1 . . . 2 . . . . . Energy Bleed 1 | . . . . . . . 1 . . . . . Interference 1 | . . . . . . . 1 . . . . . Damage (minor) 1 | . . . 1 . . . . . . . . . Siege Activations . | . . . . . . . . . . . . . Robots Corrupted 2 | . . . . . . 1 1 . . . . . Combat Hostiles 2 | . . . . . . 1 1 . . . . . Parts Fried 12 | . 1 . 6 1 . 2 2 . . . . . Impact Corruptions . | . . . . . . . . . . . . . Robots Melted . | . . . . . . . . . . . . . Combat Hostiles . | . . . . . . . . . . . . . Parts Melted 1 | . . 1 . . . . . . . . . . Heat Transferred 700 | . 100 50 200 150 . 100 100 . . . . . Parts Sabotaged . | . . . . . . . . . . . . . Parts Stolen . | . . . . . . . . . . . . . Parts Stripped . | . . . . . . . . . . . . . Power Chain Reactions 9 | . 3 1 2 1 . 1 1 . . . . . Missiles Intercepted . | . . . . . . . . . . . . . Alert | -11 -10 -10 -9 -9 -9 -8 -8 -7 -6 -5 -4 -3 ------- Run | Scr Mat Min Mat Min Exi Min Mat Fac Fac Fac Fac Res Peak Influence 352 | . 169 131 294 79 . 111 225 155 202 352 185 297 Initial 158 | . . 31 50 39 . . 42 98 54 26 158 75 Average 104 | . 59 69 155 63 . 56 83 100 71 210 85 138 Maximum Alert Level 1 | . . . 1 . . . 1 . 1 1 . 1 Low Security (%) 84 | 100 100 100 66 100 . 100 87 100 89 37 100 65 Level 1 15 | . . . 33 . . . 12 . 10 62 . 34 Level 2 . | . . . . . . . . . . . . . Level 3 . | . . . . . . . . . . . . . Level 4 . | . . . . . . . . . . . . . Level 5 . | . . . . . . . . . . . . . High Security . | . . . . . . . . . . . . . Max Security . | . . . . . . . . . . . . . Squads Dispatched 33 | . 3 1 3 1 . . 3 4 2 5 5 6 Investigation 14 | . 2 . 2 1 . . 1 3 . 2 2 1 Extermination 3 | . . . . . . . . . . . 2 1 Reinforcement 15 | . 1 . 1 . . . 2 1 2 3 1 4 Assault 1 | . . 1 . . . . . . . . . . Garrison . | . . . . . . . . . . . . . Intercept . | . . . . . . . . . . . . . Construction Impeded 1 | . . . . . . . 1 . . . . . Haulers Reinforced . | . . . . . . . . . . . . . Active Scanning Responses . | . . . . . . . . . . . . . Cargo Convoy Interrupts . | . . . . . . . . . . . . . Stealth | -11 -10 -10 -9 -9 -9 -8 -8 -7 -6 -5 -4 -3 --------- Run | Scr Mat Min Mat Min Exi Min Mat Fac Fac Fac Fac Res Distress Signals 14 | . 4 . 2 . . . 2 . 1 3 . 2 Communications Jammed 11 | . . . . . . . . . . . . 11 Distress Signals 11 | . . . . . . . . . . . . 11 Times Spotted 201 | . 23 7 39 2 . 9 27 6 12 22 17 37 Peak Tracking Total 13 | . 4 4 4 2 . 3 9 3 7 10 4 13 Tactical Retreats 28 | . . . 1 1 . 6 1 2 3 5 4 5 Traps | -11 -10 -10 -9 -9 -9 -8 -8 -7 -6 -5 -4 -3 ------- Run | Scr Mat Min Mat Min Exi Min Mat Fac Fac Fac Fac Res Traps Triggered 5 | . 2 . . . . . . . 1 . . 2 Indirectly . | . . . . . . . . . . . . . Trap Hack Attempts . | . . . . . . . . . . . . . Triggered . | . . . . . . . . . . . . . Disarmed . | . . . . . . . . . . . . . Reprogrammed . | . . . . . . . . . . . . . Reused . | . . . . . . . . . . . . . Traps Extracted . | . . . . . . . . . . . . . Installed . | . . . . . . . . . . . . . Triggered . | . . . . . . . . . . . . . Machines | -11 -10 -10 -9 -9 -9 -8 -8 -7 -6 -5 -4 -3 ---------- Run | Scr Mat Min Mat Min Exi Min Mat Fac Fac Fac Fac Res Machines Disabled 10 | . . . 4 . . 1 1 . . 4 . . Max in Single Turn 2 | . . . 2 . . 1 1 . . . . . Garrison Access 4 | . . . . . . . 1 . 1 . 1 1 Machines Sabotaged . | . . . . . . . . . . . . . Garrisons Compromised . | . . . . . . . . . . . . . Overloaded Fab Kills . | . . . . . . . . . . . . . Hacking | -11 -10 -10 -9 -9 -9 -8 -8 -7 -6 -5 -4 -3 --------- Run | Scr Mat Min Mat Min Exi Min Mat Fac Fac Fac Fac Res Machines Accessed 80 | . 9 1 12 2 3 . 4 6 11 12 9 11 Terminals 42 | . 7 . 9 . . . 3 4 5 5 2 7 Fabricators 8 | . . . . . . . . 1 2 2 2 1 Repair Stations 5 | . 1 . 1 . . . . . . 1 2 . Recycling Units 8 | . 1 . 1 . . . . 1 3 1 1 . Scanalyzers 6 | . . . 1 . . . . . . 2 1 2 Garrison Access 5 | . . . . . . . 1 . 1 1 1 1 Total Hacks 230 | . 33 1 43 2 4 . 12 12 26 34 24 39 Successful 112 | . 15 1 23 2 4 . 5 5 11 17 14 15 Failed 118 | . 18 . 20 . . . 7 7 15 17 10 24 Catastrophic 24 | . 5 . 6 . . . . 2 4 1 2 4 Database Lockouts . | . . . . . . . . . . . . . Manual 52 | . 12 . 18 . 1 . 5 4 4 2 1 5 Terminals 132 | . 26 . 32 . . . 9 6 9 15 5 30 Fabricators 22 | . . . . . . . . 3 6 5 4 4 Repair Stations 14 | . 5 . 2 . . . . . . 2 5 . Recycling Units 24 | . 2 . 2 . . . . 3 10 3 4 . Scanalyzers 22 | . . . 7 . . . . . . 8 4 3 Garrison Access 9 | . . . . . . . 3 . 1 1 2 2 Terminal Hacks 54 | . 8 1 12 2 4 . 2 1 4 7 1 12 Record 8 | . 1 . 3 . 3 . . . . 1 . . Part Schematic 3 | . . . . . . . . . 1 1 . 1 Prototype ID Bank 7 | . 4 . 3 . . . . . . . . . Open Door 3 | . . 1 . 2 . . . . . . . . Open DSF 3 | . . . . . . . . . 2 . . 1 Branch Access Points 3 | . . . 1 . . . . 1 . . 1 . Emergency Access Points 1 | . . . . . . . . . . . . 1 Fabricator Index 2 | . . . . . . . . . . 1 . 1 Repair Station Index 1 | . . . . . . . . . . . . 1 Recycling Unit Index 1 | . . . . . . . . . . 1 . . Scanalyzer Index 2 | . . . 1 . . . . . . 1 . . Unreport Threat 6 | . 2 . 1 . . . 1 . 1 . . 1 Locate Traps 2 | . . . . . . . . . . 1 . 1 Recall Investigation 2 | . . . . . . . 1 . . . . 1 Recall Reinforcements 1 | . . . . . . . . . . . . 1 Hauler Manifests 1 | . . . 1 . . . . . . . . . Registered Components 1 | . . . 1 . . . . . . . . . Registered Prototypes 1 | . 1 . . . . . . . . . . . Zone Layout 5 | . . . 1 . . . . . . 1 . 3 EX-Prototype ID Bank 1 | . . . . . 1 . . . . . . . Fabricator Hacks 12 | . . . . . . . . 3 2 2 4 1 Network Status 1 | . . . . . . . . . 1 . . . Load Schematic 5 | . . . . . . . . 1 . 1 2 1 Build 6 | . . . . . . . . 2 1 1 2 . Repair Station Hacks 10 | . 4 . 2 . . . . . . 1 3 . Scan Component 4 | . 2 . 1 . . . . . . . 1 . Repair 4 | . 2 . 1 . . . . . . . 1 . Refit 2 | . . . . . . . . . . 1 1 . Recycling Unit Hacks 10 | . 1 . 2 . . . . 1 3 2 1 . Process 3 | . . . . . . . . 1 1 1 . . Report Inventory 4 | . 1 . 1 . . . . . 1 1 . . Retrieve Matter 2 | . . . . . . . . . 1 . 1 . Retrieve Components 1 | . . . 1 . . . . . . . . . Scanalyzer 15 | . . . 6 . . . . . . 5 4 . Insert Component 8 | . . . 3 . . . . . . 3 2 . Analyze 7 | . . . 3 . . . . . . 2 2 . Garrison Access Hacks 5 | . . . . . . . 1 . 1 . 1 2 Seal Access 4 | . . . . . . . 1 . 1 . 1 1 Coupler Status 1 | . . . . . . . . . . . . 1 Unauthorized Hacks 6 | . 2 . 1 . . . 2 . 1 . . . Terminals 4 | . 1 . . . . . 2 . 1 . . . Botnet 4 | . 1 . . . . . 2 . 1 . . . Fabricators . | . . . . . . . . . . . . . Repair Stations . | . . . . . . . . . . . . . Recycling Units 1 | . 1 . . . . . . . . . . . Tunnel 1 | . 1 . . . . . . . . . . . Scanalyzers 1 | . . . 1 . . . . . . . . . Extract 1 | . . . 1 . . . . . . . . . Garrison Access . | . . . . . . . . . . . . . Data Cores Recovered . | . . . . . . . . . . . . . Used . | . . . . . . . . . . . . . Hacking Detections 65 | . 8 . 11 . . . 3 5 9 12 7 10 Full Trace Events 10 | . . . 1 . . . 1 3 . 2 2 1 Feedback Events 3 | . . . 1 . . . 1 . . 1 . . Corruption 3 | . . . 1 . . . 1 . . 1 . . Feedback Blocked . | . . . . . . . . . . . . . Robot Schematics Acquired . | . . . . . . . . . . . . . Robots Built 4 | . . . . . . . . 3 1 . . . Authchips . | . . . . . . . . . . . . . Time 174 | . . . . . . . . 134 40 . . . Total Robot Build Rating 13 | . . . . . . . . 12 1 . . . Part Schematics Acquired 11 | . . . 5 . . . . . 1 2 2 1 Parts Built 7 | . . . . . . . . 1 . 2 4 . Authchips . | . . . . . . . . . . . . . Time 228 | . . . . . . . . 51 . 53 124 . Total Part Build Rating 21 | . . . . . . . . 1 . 12 8 . Parts Repaired 4 | . 2 . 1 . . . . . . . 1 . Time 94 | . 52 . 26 . . . . . . . 16 . Parts Recycled . | . . . . . . . . . . . . . Recycled Matter 2 | . . . . . . . . . . 2 . . Retrieved Matter . | . . . . . . . . . . . . . Retrieved Components 9 | . . . 9 . . . . . . . . . Parts Scanalyzed 7 | . . . 3 . . . . . . 3 1 . Part Schematics Acquired 6 | . . . 3 . . . . . . 1 2 . Parts Damaged . | . . . . . . . . . . . . . Bothacking | -11 -10 -10 -9 -9 -9 -8 -8 -7 -6 -5 -4 -3 ------------ Run | Scr Mat Min Mat Min Exi Min Mat Fac Fac Fac Fac Res Used RIF Installer . | . . . . . . . . . . . . . Robots Hacked 2 | . . . . . . . . . . . 1 1 Non-combat . | . . . . . . . . . . . . . Combat 2 | . . . . . . . . . . . 1 1 Robot Hacks Applied 2 | . . . . . . . . . . . 1 1 parse_system 2 | . . . . . . . . . . . 1 1 Relay Couplers Released . | . . . . . . . . . . . . . Fabnet Peak Effective % . | . . . . . . . . . . . . . Robots Rewired 2 | . . . . . . . . . . 2 . . Allies Hacked 1 | . . . . . . . . . . 1 . . Hacks Repelled . | . . . . . . . . . . . . . Allies | -11 -10 -10 -9 -9 -9 -8 -8 -7 -6 -5 -4 -3 -------- Run | Scr Mat Min Mat Min Exi Min Mat Fac Fac Fac Fac Res Total Allies 7 | . . 1 . . . . . 3 1 2 . . Largest Group 3 | . . 1 1 . . . . 3 1 2 . . Highest-Rated Group 90 | . . 31 31 . . . . 90 6 53 . . Highest-Rated Ally 41 | . . 31 31 . . . . 30 6 41 . . Total Orders 2 | . . . 1 . . . 1 . . . . . EXPLORE 2 | . . . 1 . . . 1 . . . . . Ally Attacks 28 | . . 3 . . . . . 12 . 13 . . Total Damage 648 | . . 65 . . . . . 301 . 282 . . Kills 9 | . . 1 . . . . . 4 . 4 . . Allies Corrupted . | . . . . . . . . . . . . . Allies Melted . | . . . . . . . . . . . . . Intel | -11 -10 -10 -9 -9 -9 -8 -8 -7 -6 -5 -4 -3 ------- Run | Scr Mat Min Mat Min Exi Min Mat Fac Fac Fac Fac Res Robot Analysis Total . | . . . . . . . . . . . . . Derelict Logs Recovered 1 | . . . . 1 . . . . . . . . Drone Launches 18 | . . . 3 . . . 13 . . 2 . . Drone Recoveries 14 | . . . 3 . . . 10 . . 1 . . Exploration | -11 -10 -10 -9 -9 -9 -8 -8 -7 -6 -5 -4 -3 ------------- Run | Scr Mat Min Mat Min Exi Min Mat Fac Fac Fac Fac Res Turns Passed 9229 | 57 1063 226 1622 455 1043 669 372 589 881 713 1064 475 Spaces Moved 8745 | 49 747 195 803 262 649 394 231 894 1262 1189 1240 830 Core 92 | 1 . . . . . . . . . . 2 89 Treads 1949 | . 14 . 719 262 649 301 4 . . . . . Legs . | . . . . . . . . . . . . . Wheels 1273 | 48 733 195 84 . . 93 120 . . . . . Hover 2313 | . . . . . . . . 855 1009 449 . . Flight 3118 | . . . . . . . 107 39 253 740 1238 741 Fastest Speed 23 | 50 95 110 125 160 160 130 29 35 27 26 23 26 Average Speed 75 | 88 109 110 157 160 160 154 91 45 41 34 26 33 Slowest Speed 272 | 95 240 110 160 160 160 240 272 60 120 100 200 117 Overloaded Moves . | . . . . . . . . . . . . . Propulsion Burnouts . | . . . . . . . . . . . . . Robots Hopped 25 | . . . . . . . 5 . 1 1 7 11 Cave-ins Triggered . | . . . . . . . . . . . . . Exploration Rate (%) 45 | 3 98 44 75 48 91 65 22 25 22 37 30 30 Regions Visited 12 Branch Regions 4 Pre-discovered Areas 2 | . 1 . . 1 . . . . . . . . Known Exits Taken 4 | . . . 1 . . . . . 1 1 1 . Unknown Exits Taken 8 | 1 1 1 . 1 1 1 1 1 . . . . Scrap Searched 3 | . . . . 2 . 1 . . . . . . Spaces Dug 123 | . . . . . . . 6 18 18 34 23 24 Terrain Destroyed 260 | . 8 1 40 2 . 46 46 18 18 34 23 24 Melee 123 | . . . . . . . 6 18 18 34 23 24 Projectile . | . . . . . . . . . . . . . AOE 137 | . 8 1 40 2 . 46 40 . . . . . Terrain Rammed . | . . . . . . . . . . . . . Walls Destroyed . | . . . . . . . . . . . . . Machines Disabled . | . . . . . . . . . . . . . Actions | -11 -10 -10 -9 -9 -9 -8 -8 -7 -6 -5 -4 -3 --------- Run | Scr Mat Min Mat Min Exi Min Mat Fac Fac Fac Fac Res Total 10817 | 60 937 206 1042 292 654 427 345 1038 1564 1383 1902 967 Wait 1387 | . 118 7 107 17 . 13 69 82 220 95 591 68 Move 8686 | 48 746 194 802 261 648 393 221 893 1259 1186 1226 809 Hop 22 | . . . . . . . 4 . 1 1 6 10 Pick Up 108 | 7 22 2 23 3 1 1 2 11 9 14 9 4 Fast Attach 69 | 5 3 . 4 1 2 1 4 11 10 8 10 10 Attach 49 | . 2 . 8 . . 1 10 3 4 7 8 6 Detach 16 | . . . 2 . . . 1 1 4 1 4 3 Swap 36 | . 2 . 12 1 . 2 1 4 8 3 1 2 Drop 105 | . 14 2 20 5 3 1 5 10 19 13 7 6 Fire 133 | . 30 1 63 4 . 15 18 . . . . 2 Melee 188 | . . . . . . . 10 23 30 55 40 30 Ram 3 | . . . . . . . . . . . . 3 Kick . | . . . . . . . . . . . . . Crush 1 | . . . 1 . . . . . . . . . Escape Stasis 14 | . . . . . . . . . . . . 14 Rewire . | . . . . . . . . . . . . . Trap . | . . . . . . . . . . . . . Miscellaneous . | . . . . . . . . . . . . . Route ------- -11/Scrapyard -10/Materials (discovered 4 exits: *Mat x3 / *Min) -10/Mines (discovered 2 exits: *Mat x2) -9/Materials (discovered 4 exits: *Mat x2 / *Min x2) -9/Mines (discovered 2 exits: *Mat / *Exi) -9/Exiles (discovered 2 exits: [*Min x2]) -8/Mines -8/Materials -7/Factory (discovered 4 exits: *Fac / Sto / Low x2) -6/Factory -5/Factory (discovered 2 exits: *Fac / [*Upp]) -4/Factory (discovered 4 exits: *Res / Upp x2 / Arm) -3/Research History --------- Turn | Location | Event 6 | -11/Scrapyard | Discovered new exit (range 16) 58 | -11/Scrapyard | Entered Materials 215 | -10/Materials | Discovered new exit (range 10) 234 | -10/Materials | Discovered new exit (range 13) 302 | -10/Materials | Build established: Mutant 469 | -10/Materials | Discovered new exit (range 11) 610 | -10/Materials | Repaired EM Pulse Gun 638 | -10/Materials | Repaired EM Pulse Gun 768 | -10/Materials | Discovered new exit (range 8) 1121 | -10/Materials | Entered Mines 1239 | -10/Mines | Discovered new exit (range 5) 1240 | -10/Mines | Met a Derelict testing a Signal Generator 1283 | -10/Mines | Found the Drone Emporium 1288 | -10/Mines | Found Prototype Device 1305 | -10/Mines | Discovered new exit (range 7) 1347 | -10/Mines | Entered Materials 1347 | -9/Materials | Accompanied by 1 ally 1347 | -9/Materials | Evolved 2 slots: Utility x2 1348 | -9/Materials | Identified Sensor Drone Bay 1572 | -9/Materials | Discovered new exit (range 14) 1726 | -9/Materials | Discovered new exit (range 9) 2384 | -9/Materials | Identified exit to Mines 2421 | -9/Materials | Discovered new exit (range 15) 2616 | -9/Materials | Repaired EM Pulse Gun 2969 | -9/Materials | Entered Mines 2977 | -9/Mines | Met a Derelict shopkeep closing up shop 3143 | -9/Mines | Deemed a non-threat by the Exiles lab entrance 3145 | -9/Mines | Discovered new exit (range 5) 3309 | -9/Mines | Met a Derelict who couldn't figure out how to use a Trap Extractor 3379 | -9/Mines | Learned location of Storage (-7) 3379 | -9/Mines | Discovered new exit (range 12) 3424 | -9/Mines | Entered Exiles 3447 | -9/Exiles | Discovered new exit (range 14) 3481 | -9/Exiles | Met 8R-AWN 3509 | -9/Exiles | Met EX-HEX 3571 | -9/Exiles | Met EX-DEC 3669 | -9/Exiles | Met EX-BIN 3688 | -9/Exiles | Aligned with FarCom system 3689 | -9/Exiles | Given EX-Vault access code 3726 | -9/Exiles | Opened EX-Vault 3740 | -9/Exiles | Found Superbattery 3825 | -9/Exiles | Warned to stay clear of 0b10 Research branches 3996 | -9/Exiles | Visited The Gauntlet 4245 | -9/Exiles | Discovered new exit (range 12) 4467 | -9/Exiles | Left Exiles lab with Superbattery 4467 | -9/Exiles | Entered Mines 5046 | -8/Mines | Discovered new exit (range 7) 5136 | -8/Mines | Entered Materials 5136 | -8/Materials | Evolved 2 slots: Propulsion x2 5413 | -8/Materials | Core integrity fell below 50% 5446 | -8/Materials | Lost 12 parts (1p6n2u3w) 5506 | -8/Materials | Discovered new exit (range 5) 5508 | -8/Materials | Entered Factory 5508 | -7/Factory | Evolved 2 slots: Propulsion x1, Utility x1 5895 | -7/Factory | Discovered new exit (range 15) 5916 | -7/Factory | Identified exit to Storage 5916 | -7/Factory | Identified exit to Lower Caves 5985 | -7/Factory | Fabricated L-41 Fighter? 6087 | -7/Factory | Fabricated Datajack (x1) 6097 | -7/Factory | Entered another Factory area 6097 | -6/Factory | Evolved 2 slots: Utility x2 6103 | -6/Factory | Identified exit to DSF 6424 | -6/Factory | Fabricated K-01 Serf (x1) 6466 | -6/Factory | Build established: Hacker-Mutant 6764 | -6/Factory | Discovered new exit (range 5) 6912 | -6/Factory | Identified exit to Factory 6978 | -6/Factory | Entered another Factory area 6978 | -5/Factory | Evolved 2 slots: Utility x2 7163 | -5/Factory | Fabricated Linear Gravjet? 7299 | -5/Factory | Lost 4 parts (2n2u) 7351 | -5/Factory | Lost 4 parts (1p1n1u1w) 7441 | -5/Factory | Discovered new exit (range 12) 7473 | -5/Factory | Found Prototype Launcher 7496 | -5/Factory | Discovered new exit (range 3) 7497 | -5/Factory | Identified exit to Factory 7691 | -5/Factory | Entered another Factory area 7691 | -4/Factory | Evolved 2 slots: Utility x2 7783 | -4/Factory | Fabricated VTOL Module (x2) 8091 | -4/Factory | Lost 5 parts (2n3u) 8286 | -4/Factory | Spotted B-86 Titan 8556 | -4/Factory | Fabricated VTOL Module? 8597 | -4/Factory | Repaired VTOL Module 8659 | -4/Factory | Identified exit to Upper Caves 8659 | -4/Factory | Identified exit to Armory 8739 | -4/Factory | Discovered new exit (range 21) 8739 | -4/Factory | Spotted B-86 Titan 8744 | -4/Factory | Identified exit to Research 8755 | -4/Factory | Entered Research 8755 | -3/Research | Evolved 2 slots: Utility x2 9026 | -3/Research | Lost 5 parts (3n2u) 9070 | -3/Research | Spotted B-86 Titan 9156 | -3/Research | Spotted B-86 Titan 9173 | -3/Research | Core integrity fell below 50% 9204 | -3/Research | Lost 11 parts (1p3n5u2w) 9215 | -3/Research | Core integrity fell below 20% 9230 | -3/Research | Destroyed by P-80 Master with Gamma Rifle Last Messages --------------- 09210_ Linear Accelerator severed. 09213_ Acquired 4 matter. 09214_ Impulse Thruster Array destroyed. 09215_ P-80 Master resets P-80 Master, system corruption cleaned. 09216_ Penetrated by Slug. 09216_ Imp. Melee Analysis Suite destroyed. 09216_ Hacking Suite destroyed. 09222_ Acquired Field Propulsion Drive. 09223_ Slammed into C-35 Carver. 09223_ Destabilizing: System corrupted (+2). 09224_ Slammed into C-35 Carver. 09225_ Field Propulsion Drive severed. 09225_ Slammed into C-35 Carver. 09225_ Enh. Optical Array destroyed. 09225_ System corrupted by crushing effect (+3). 09227_ C-35 Carver destroyed. 09227_ Acquired Field Propulsion Drive. 09227_ Field Propulsion Drive destroyed. 09230_ W-44 Eye sends out distress signal. [Achievement: Achiever] Map ----- +----------------------------------------------------+ | ?????????????????????????????????????????????????? | | ?????????????????????????????????????????????????? | | ?????????????????????????????????????????????????? | | ?????????????????????????????????????????????????? | | ?????????????????????????????????????????????????? | | ?????????????????????????????????????????????????? | | ?????????????????????????????????????????????????? | | ?????????????????????????????????????????????????? | | ?????????????????????????????????????????????????? | | ?????????????????????????????????????????????????? | | ?????????????????????????????????????????????????? | | ?????????????????????????????????????????????????? | | ??????????????????????########???????????????????? | | ??????????????????????# #???????????????????? | | ??????????????????????# #???????????????????? | | ??????????????????????# ! #???????????????????? | | ??????????????????????# #???????????????????? | | ??##################### #???????????????????? | | ??#! # ]# #???????????????????? | | ??# * # # #???????????????????? | | ??# # % # #???????????????????? | | ??# """ # """ # c #???????????????????? | | ??# """ # """ # #???????????????????? | | ??# """ # """ # c #???????????????????? | | ??# # # p p #???????????????????? | | ??# # # Y@ #???????????####+##?? | | ??##+##+##+######/######w##########????### ?? | | ???# ## ggg ?? | | ???# ## g = ?? | | ???# ## ?? | | ???# ## h ?? | | ???# ## h ?? | | ???# #####+#############+##### ########### ?? | | ???# ###????????????????? ???/#???????????# #?? | | ???# +?????????????????? ??? ???????????# #?? | | ???# ###??????????????????? #??? ??????????+ #?? | | ???# #??????????????????????#???? ?????????# ### | | ???# #???????????????????????????? ????????# ## | | ???# #????????????????????????????? ???????# | | ???# #?????????????????????????????? ??????# | | ???# #???????????????????????????#+#???????# | | ???# #???????????????????????????# #??########+## | | ??## ##??????????????????????????# #??# [ ## | | ??# ##?????????????????????????# #### #? | | ??# +?????????????????????????# / """"" #? | | ??# ##?????????????????????????# #### """"" !#? | | ??# #??????????????# ######### #??# """"" #? | | ?## ##?????????????+ #??# #? | | ?# #?????????????# ######### #??# #? | | ?# #?????????????????????????# #??# #? | +----------------------------------------------------+ Best States ------------- Heat Dissipation 69 Energy Generation 28 Energy Capacity 1680 Matter Stores 300 Matter Capacity 300 Sight Range 22 Robot Scan Range 15 Terrain Scan Range 16 Terrain Scan Density 10 ECM Strength 2 Jamming Range 12 Cloak Strength 2 Power Amplification 30 EM Shielding 4 Armor Coverage 150 Resistance: KI 20 Propulsion Shielding 66 Utility Shielding 66 Weapon Shielding 66 Evasion (%) 75 Targeting Accuracy 6 Melee Accuracy 6 Target Analysis 6 Recoil Reduction 2 Salvage Targeting 2 Offensive Hacking 34 Defensive Hacking 20 Item Schematics ----------------- Mni. Grenade Launcher | -9/Materials | Scanalyzed Datajack | -9/Materials | Scanalyzed Targeting Computer | -9/Materials | Scanalyzed Welding Torch | -9/Materials | Extracted Wheel | -9/Materials | Extracted Linear Gravjet | -6/Factory | Hacked Lance | -5/Factory | Hacked VTOL Module | -5/Factory | Scanalyzed Adv. Hacking Suite | -4/Factory | Scanalyzed Imp. Remote Datajack | -4/Factory | Scanalyzed Q-thruster | -3/Research | Hacked Robot Schematics ------------------ None Fabricated ------------ L-41 Fighter | x3 | -7/Factory | Preloaded Datajack | x1 | -7/Factory K-01 Serf | x1 | -6/Factory | Preloaded Linear Gravjet | x2 | -5/Factory VTOL Module | x2 | -4/Factory VTOL Module | x2 | -4/Factory Alien Tech Used ----------------- None Achievements -------------- A New Friend Achiever Can't Catch Me Dodgeball, But With Guns Prolific Hacker Challenges ------------ None Game ------ Seed CoordinationSwarmArchive Manual? 0 Play Time 02:22:31 Cumulative 19.8 hours Start 2021.12.25 @ 13:49:00 End 2021.12.25 @ 16:20:07 Sessions 1 Manual Loads 0 Difficulty Rogue Special Mode Winter2021/Sauler Game No. 13 Rogue 13 Adventurer 0 Explorer 0 Win Type - Total 0 Types 0/0/0/0/0/0/0/0/0 Lore% 27 Gallery% 28 Achievement% 26 Wizard Run 0 Options --------- ASCII 1 Keyboard 1 Movement Vi Keybinds 0 Fullscreen 1 Font 18/X11 Map View 76x50 Tactical HUD 1 Map Filters NONE Filters NONE Steam 1 RUN: 6984b556-8f5c-413c-8029-148d4b941092